{"text_format":"1","workbook":"xlsx","n_sheets":2,"sheets":["СВОД","Лист1"],"not_rendered":{"charts":0,"images":0,"macros":1,"external_links":0,"defined_names":6,"comments":0,"pivot_tables":0},"unopened":[],"bounds":{"document_bytes":16777216,"sheet_cells":100000,"rows_first":2000,"rows_last":500,"rows_between":2000,"halvings":0,"cell_chars":16384,"cell_head_chars":4096},"cells_cut":0,"cells_raw":0,"read":"whole","date_system":"1900"}

{"sheet":"СВОД","index":0,"n_rows":77,"n_cols":15,"rows_kept":77,"cut":false,"hidden":false,"merged":[[3,1,4,1]]}
[]
[null,null,"Отчет о проверке Стандарта раскрытия информации на портале \"Дома Москвы\""]
[]
[null,"Округ","Район","Наименование управляющей организации, товарищества, кооператива","ИНН","Адрес многоквартирного дома","Некорректная статья","Фактическое количество работ (согласно выгрузке с портала \"Дома Москвы\")","Фактическая годовая стоимость работ (согласно выгрузке с портала \"Дома Москвы\"), тыс. руб","Краткое описание нарушения","Принятые меры",null,"Примечание","Дата проверки"]
[null,null,null,null,null,null,null,null,null,null,"Учтено при выставлении статуса УО через личный кабинет (учтено\\не учтено)","Меры административного воздействия (предписание №\\протокол №)"]
[null,1,2,3,4,5,7,8,9,10,11,null,12,6]
[{"$f":"+F7","v":"Сиреневый бульв., д.4, к.3"},"ВАО","Измайлово","АО «РЭУ  №24 района Измайлово»",7719572031,"Сиреневый бульв., д.4, к.3","9.1","1",56.656999999999996,"по данным в составе и состоянии общего имущества МКД сети газоснабжения отсутствуют",56.656999999999996,null,null,"2015-04-16","ВАО"]
[{"$f":"+F8","v":"Славянский бульв., д.3"},"ЗАО","Фили-Давыдково","ГУП г. Москвы ДЕЗ района Фили-Давыдково",7731026159,"Славянский бульв., д.3","9.1","1",84.513999999999996,"по данным в составе и состоянии общего имущества МКД сети газоснабжения отсутствуют","есть вентили",null,null,"2015-04-16"]
[{"$f":"+F9","v":"Славянский бульв., д.7, к.1"},"ЗАО","Фили-Давыдково","ГУП г. Москвы ДЕЗ района Фили-Давыдково",7731026159,"Славянский бульв., д.7, к.1","9.1","1",83.569000000000003,"по данным в составе и состоянии общего имущества МКД сети газоснабжения отсутствуют","есть вентили",null,null,"2015-04-16"]
[{"$f":"+F10","v":"Славянский бульв., д.11, к.1"},"ЗАО","Фили-Давыдково","ГУП г. Москвы ДЕЗ района Фили-Давыдково",7731026159,"Славянский бульв., д.11, к.1","9.1","1",84.984999999999999,"по данным в составе и состоянии общего имущества МКД сети газоснабжения отсутствуют","есть вентили",null,null,"2015-04-16"]
[{"$f":"+F11","v":"Славянский бульв., д.15"},"ЗАО","Фили-Давыдково","ГУП г. Москвы ДЕЗ района Фили-Давыдково",7731026159,"Славянский бульв., д.15","9.1","1",84.513999999999996,"по данным в составе и состоянии общего имущества МКД сети газоснабжения отсутствуют","есть вентили",null,null,"2015-04-16"]
[{"$f":"+F12","v":"Измайловская пл., д.6"},"ВАО","Измайлово","АО «РЭУ  №24 района Измайлово»",7719572031,"Измайловская пл., д.6","6.1","12",36.725999999999999,"по данным в составе и состоянии общего имущества МКД лифты отсутствуют","69,538 в паспорте есть лифты",null,null,"2015-04-13"]
["Федеративный просп., д.8, к.2","ВАО","Перово","ГУП г. Москвы ДЕЗ района «Перово»",7720082835,"Федеративный просп., д.8, к.2","6.1","12",141.71299999999999,"по данным в составе и состоянии общего имущества МКД количество лифтов \"0\"",null,null,null,"2015-04-13"]
["Федеративный просп., д.3","ВАО","Перово","ГУП г. Москвы ДЕЗ района «Перово»",7720082835,"Федеративный просп., д.3","6.1","12",3049.69,"по данным в составе и состоянии общего имущества МКД количество лифтов \"0\"",null,null,null,"2015-04-13"]
["Плющева ул., д.10, к.1","ВАО","Перово","ГУП г. Москвы ДЕЗ района «Перово»",7720082835,"Плющева ул., д.10, к.1","6.1","12",141.71299999999999,"по данным в составе и состоянии общего имущества МКД количество лифтов  \"0\"см скрин Федеративный пр-т д.3",null,null,null,"2015-04-13"]
["Плющева ул., д.12, к.1","ВАО","Перово","ГУП г. Москвы ДЕЗ района «Перово»",7720082835,"Плющева ул., д.12, к.1","6.1","12",141.71299999999999,"по данным в составе и состоянии общего имущества МКД количество лифтов  \"0\"см скрин Федеративный пр-т д.3",null,null,null,"2015-04-13"]
["Федеративный просп., д.4","ВАО","Перово","ГУП г. Москвы ДЕЗ района «Перово»",7720082835,"Федеративный просп., д.4","6.1","12",3049.69,"по данным в составе и состоянии общего имущества МКД количество лифтов  \"0\"см скрин Федеративный пр-т д.3",null,null,null,"2015-04-13"]
["Федеративный просп., д.15, к.4","ВАО","Перово","ГУП г. Москвы ДЕЗ района «Перово»",7720082835,"Федеративный просп., д.15, к.4","6.1","12",3049.69,"по данным в составе и состоянии общего имущества МКД количество лифтов  \"0\"см скрин Федеративный пр-т д.3",null,null,null,"2015-04-13"]
["Федеративный просп., д.7, к.1","ВАО","Перово","ГУП г. Москвы ДЕЗ района «Перово»",7720082835,"Федеративный просп., д.7, к.1","6.1","12",141.71299999999999,"по данным в составе и состоянии общего имущества МКД количество лифтов  \"0\"см скрин Федеративный пр-т д.3",null,null,null,"2015-04-13"]
["Федеративный просп., д.7, к.3","ВАО","Перово","ГУП г. Москвы ДЕЗ района «Перово»",7720082835,"Федеративный просп., д.7, к.3","6.1","12",141.71299999999999,"по данным в составе и состоянии общего имущества МКД количество лифтов  \"0\"см скрин Федеративный пр-т д.3",null,null,null,"2015-04-13"]
["Федеративный просп., д.7, к.4","ВАО","Перово","ГУП г. Москвы ДЕЗ района «Перово»",7720082835,"Федеративный просп., д.7, к.4","6.1","12",141.71299999999999,"по данным в составе и состоянии общего имущества МКД количество лифтов  \"0\"см скрин Федеративный пр-т д.3",null,null,null,"2015-04-13"]
["Федеративный просп., д.7, к.2","ВАО","Перово","ГУП г. Москвы ДЕЗ района «Перово»",7720082835,"Федеративный просп., д.7, к.2","6.1","12",141.71299999999999,"по данным в составе и состоянии общего имущества МКД количество лифтов  \"0\"см скрин Федеративный пр-т д.3",null,null,null,"2015-04-13"]
["Федеративный просп., д.6, к.3","ВАО","Перово","ГУП г. Москвы ДЕЗ района «Перово»",7720082835,"Федеративный просп., д.6, к.3","6.1","12",141.71299999999999,"по данным в составе и состоянии общего имущества МКД количество лифтов  \"0\"см скрин Федеративный пр-т д.3",null,null,null,"2015-04-13"]
["Федеративный просп., д.5, к.1","ВАО","Перово","ГУП г. Москвы ДЕЗ района «Перово»",7720082835,"Федеративный просп., д.5, к.1","6.1","12",3049.69,"по данным в составе и состоянии общего имущества МКД количество лифтов  \"0\"см скрин Федеративный пр-т д.3",null,null,null,"2015-04-13"]
["Федеративный просп., д.9, к.1","ВАО","Перово","ГУП г. Москвы ДЕЗ района «Перово»",7720082835,"Федеративный просп., д.9, к.1","6.1","12",141.71299999999999,"по данным в составе и состоянии общего имущества МКД количество лифтов  \"0\"см скрин Федеративный пр-т д.3",null,null,null,"2015-04-13"]
["Федеративный просп., д.10, к.2","ВАО","Перово","ГУП г. Москвы ДЕЗ района «Перово»",7720082835,"Федеративный просп., д.10, к.2","6.1","12",3049.69,"по данным в составе и состоянии общего имущества МКД количество лифтов  \"0\"см скрин Федеративный пр-т д.3",null,null,null,"2015-04-13"]
["Федеративный просп., д.6, к.2","ВАО","Перово","ГУП г. Москвы ДЕЗ района «Перово»",7720082835,"Федеративный просп., д.6, к.2","6.1","12",141.71299999999999,"по данным в составе и состоянии общего имущества МКД количество лифтов  \"0\"см скрин Федеративный пр-т д.3",null,null,null,"2015-04-13"]
["Федеративный просп., д.6, к.1","ВАО","Перово","ГУП г. Москвы ДЕЗ района «Перово»",7720082835,"Федеративный просп., д.6, к.1","6.1","12",141.71299999999999,"по данным в составе и состоянии общего имущества МКД количество лифтов  \"0\"см скрин Федеративный пр-т д.3",null,null,null,"2015-04-13"]
["Аносова ул., д.7","ВАО","Перово","ГУП г. Москвы ДЕЗ района «Перово»",7720082835,"Аносова ул., д.7","6.1","1",102.496,"по данным в составе и состоянии общего имущества МКД количество лифтов  \"0\"см скрин Федеративный пр-т д.3",null,null,null,"2015-04-13"]
["Плющева ул., д.10, к.2","ВАО","Перово","ГУП г. Москвы ДЕЗ района «Перово»",7720082835,"Плющева ул., д.10, к.2","6.1","12",141.71299999999999,"по данным в составе и состоянии общего имущества МКД количество лифтов  \"0\"см скрин Федеративный пр-т д.3",null,null,null,"2015-04-13"]
["Кутузовский просп., д.69, к.1","ЗАО","Фили-Давыдково","ГУП г. Москвы ДЕЗ района Фили-Давыдково",7731026159,"Кутузовский просп., д.69, к.1","6.1","365",50.884999999999998,"по данным в составе и состоянии общего имущества МКД лифты отсутствуют",null,null,null,"2015-04-13"]
["Кутузовский просп., д.82","ЗАО","Фили-Давыдково","ГУП г. Москвы ДЕЗ района Фили-Давыдково",7731026159,"Кутузовский просп., д.82","6.1","365",187.13900000000001,"по данным в составе и состоянии общего имущества МКД лифты отсутствуют",null,null,null,"2015-04-13"]
["Филевская Б. ул., д.59, к.1","ЗАО","Фили-Давыдково","ГУП г. Москвы ДЕЗ района Фили-Давыдково",7731026159,"Филевская Б. ул., д.59, к.1","6.1","365",127.319,"по данным в составе и состоянии общего имущества МКД количество лифтов \"0\"",null,null,null,"2015-04-13"]
["Кутузовский просп., д.69, к.5","ЗАО","Фили-Давыдково","ГУП г. Москвы ДЕЗ района Фили-Давыдково",7731026159,"Кутузовский просп., д.69, к.5","6.1","365",50.06,"по данным в составе и состоянии общего имущества МКД количество лифтов \"0\"",null,null,null,"2015-04-13"]
["Филевская Б. ул., д.49, к.1","ЗАО","Фили-Давыдково","ГУП г. Москвы ДЕЗ района Фили-Давыдково",7731026159,"Филевская Б. ул., д.49, к.1","6.1","365",553.55899999999997,"по данным в составе и состоянии общего имущества МКД количество лифтов \"0\" см скрин Кутузовский пр-т д.69 к.5",null,null,null,"2015-04-13"]
["Филевская Б. ул., д.59, к.2","ЗАО","Фили-Давыдково","ГУП г. Москвы ДЕЗ района Фили-Давыдково",7731026159,"Филевская Б. ул., д.59, к.2","6.1","365",58.238999999999997,"по данным в составе и состоянии общего имущества МКД количество лифтов \"0\" см скрин Кутузовский пр-т д.69 к.5",null,null,null,"2015-04-13"]
[{"$f":"+F37","v":"Федеративный просп., д.8, к.2"},"ВАО","Перово","ГУП г. Москвы ДЕЗ района «Перово»",7720082835,"Федеративный просп., д.8, к.2","5.24.2","1",6.7329999999999997,"по данным в составе и состоянии общего имущества МКД количество мусоропроводов \"0\",  ствол мусоропровода \"0\"","изменен состав общего им-ва",null,null,"2015-04-15"]
["Плющева ул., д.10, к.1","ВАО","Перово","ГУП г. Москвы ДЕЗ района «Перово»",7720082835,"Плющева ул., д.10, к.1","5.24.2","1",6.7329999999999997,"по данным в составе и состоянии общего имущества МКД количество мусоропроводов \"0\",  ствол мусоропровода \"0\"","изменен состав общего им-ва",null,null,"2015-04-15"]
["Федеративный просп., д.7, к.1","ВАО","Перово","ГУП г. Москвы ДЕЗ района «Перово»",7720082835,"Федеративный просп., д.7, к.1","5.24.2","1",6.7329999999999997,"по данным в составе и состоянии общего имущества МКД количество мусоропроводов \"0\",  ствол мусоропровода \"0\"","изменен состав общего им-ва",null,null,"2015-04-15"]
["Федеративный просп., д.7, к.3","ВАО","Перово","ГУП г. Москвы ДЕЗ района «Перово»",7720082835,"Федеративный просп., д.7, к.3","5.24.2","1",6.7329999999999997,"по данным в составе и состоянии общего имущества МКД количество мусоропроводов \"0\",  ствол мусоропровода \"0\"","изменен состав общего им-ва",null,null,"2015-04-15"]
["Федеративный просп., д.7, к.4","ВАО","Перово","ГУП г. Москвы ДЕЗ района «Перово»",7720082835,"Федеративный просп., д.7, к.4","5.24.2","1",6.7329999999999997,"по данным в составе и состоянии общего имущества МКД количество мусоропроводов \"0\",  ствол мусоропровода \"0\" см скрин Федеративный пр. д.8 к.2, 7 к.1,3","изменен состав общего им-ва",null,null,"2015-04-15"]
["Федеративный просп., д.7, к.2","ВАО","Перово","ГУП г. Москвы ДЕЗ района «Перово»",7720082835,"Федеративный просп., д.7, к.2","5.24.2","1",6.7329999999999997,"по данным в составе и состоянии общего имущества МКД количество мусоропроводов \"0\",  ствол мусоропровода \"0\" см скрин Федеративный пр. д.8 к.2, 7 к.1,3","изменен состав общего им-ва",null,null,"2015-04-15"]
["Федеративный просп., д.6, к.3","ВАО","Перово","ГУП г. Москвы ДЕЗ района «Перово»",7720082835,"Федеративный просп., д.6, к.3","5.24.2","1",6.7329999999999997,"по данным в составе и состоянии общего имущества МКД количество мусоропроводов \"0\",  ствол мусоропровода \"0\" см скрин Федеративный пр. д.8 к.2, 7 к.1,3","изменен состав общего им-ва",null,null,"2015-04-15"]
["Федеративный просп., д.9, к.1","ВАО","Перово","ГУП г. Москвы ДЕЗ района «Перово»",7720082835,"Федеративный просп., д.9, к.1","5.24.2","1",6.7329999999999997,"по данным в составе и состоянии общего имущества МКД количество мусоропроводов \"0\",  ствол мусоропровода \"0\" см скрин Федеративный пр. д.8 к.2, 7 к.1,3","изменен состав общего им-ва",null,null,"2015-04-15"]
["Федеративный просп., д.6, к.2","ВАО","Перово","ГУП г. Москвы ДЕЗ района «Перово»",7720082835,"Федеративный просп., д.6, к.2","5.24.2","1",6.7329999999999997,"по данным в составе и состоянии общего имущества МКД количество мусоропроводов \"0\",  ствол мусоропровода \"0\" см скрин Федеративный пр. д.8 к.2, 7 к.1,3","изменен состав общего им-ва",null,null,"2015-04-15"]
["Федеративный просп., д.6, к.1","ВАО","Перово","ГУП г. Москвы ДЕЗ района «Перово»",7720082835,"Федеративный просп., д.6, к.1","5.24.2","1",6.7329999999999997,"по данным в составе и состоянии общего имущества МКД количество мусоропроводов \"0\",  ствол мусоропровода \"0\" см скрин Федеративный пр. д.8 к.2, 7 к.1,3","изменен состав общего им-ва",null,null,"2015-04-15"]
["Владимирская 1-я ул., д.6","ВАО","Перово","ГУП г. Москвы ДЕЗ района «Перово»",7720082835,"Владимирская 1-я ул., д.6","5.24.2","1",5.05,"по данным в составе и состоянии общего имущества МКД мусоропровод отсутствует",null,null,null,"2015-04-15"]
["Аносова ул., д.7","ВАО","Перово","ГУП г. Москвы ДЕЗ района «Перово»",7720082835,"Аносова ул., д.7","5.24.2","1",5.05,"по данным в составе и состоянии общего имущества МКД количество мусоропроводов \"0\",  ствол мусоропровода \"0\"","изменен состав общего им-ва",null,null,"2015-04-15"]
["Владимирская 2-я ул., д.4, к.1","ВАО","Перово","ГУП г. Москвы ДЕЗ района «Перово»",7720082835,"Владимирская 2-я ул., д.4, к.1","1.23.1","365",11.343999999999999,"по данным в составе и состоянии общего имущества МКД мусоропровод отсутствует",11.343999999999999,null,null,"2015-04-15"]
["Владимирская 2-я ул., д.4, к.2","ВАО","Перово","ГУП г. Москвы ДЕЗ района «Перово»",7720082835,"Владимирская 2-я ул., д.4, к.2","1.23.1","365",11.343999999999999,"по данным в составе и состоянии общего имущества МКД мусоропровод отсутствует",null,null,null,"2015-04-15"]
[{"$f":"+F51","v":"Филевская Б. ул., д.59, к.1"},"ЗАО","Фили-Давыдково","ГУП г. Москвы ДЕЗ района Фили-Давыдково",7731026159,"Филевская Б. ул., д.59, к.1","5.24.2","12",3.9740000000000002,"по данным в составе и состоянии общего имущества МКД мусоропроводов \"0\", ствол мусоропровода \"0\"",null,null,null,"2015-04-15"]
["-","ЗАО","Фили-Давыдково","ГУП г. Москвы ДЕЗ района Фили-Давыдково",7731026159,"-","1.23.1","365",13.045999999999999,"по данным в составе и состоянии общего имущества МКД мусоропроводов \"0\", ствол мусоропровода \"0\"",null,null,null,"2015-04-15"]
["Филевская Б. ул., д.49, к.1","ЗАО","Фили-Давыдково","ГУП г. Москвы ДЕЗ района Фили-Давыдково",7731026159,"Филевская Б. ул., д.49, к.1","1.23.1","365",47.985999999999997,"по данным в составе и состоянии общего имущества МКД мусоропроводов \"0\", ствол мусоропровода \"0\"",null,null,null,"2015-04-15"]
["-","ЗАО","Фили-Давыдково","ГУП г. Москвы ДЕЗ района Фили-Давыдково",7731026159,"-","5.24.2","12",15.896000000000001,"по данным в составе и состоянии общего имущества МКД мусоропроводов \"0\", ствол мусоропровода \"0\"",null,null,null,"2015-04-15"]
["Филевская Б. ул., д.59, к.2","ЗАО","Фили-Давыдково","ГУП г. Москвы ДЕЗ района Фили-Давыдково",7731026159,"Филевская Б. ул., д.59, к.2","5.24.2","12",3.9740000000000002,"по данным в составе и состоянии общего имущества МКД мусоропроводов \"0\", ствол мусоропровода \"0\"",null,null,null,"2015-04-15"]
["-","ЗАО","Фили-Давыдково","ГУП г. Москвы ДЕЗ района Фили-Давыдково",7731026159,"-","1.23.1","365",10.493,"по данным в составе и состоянии общего имущества МКД мусоропроводов \"0\", ствол мусоропровода \"0\"",null,null,null,"2015-04-15"]
["Филевская Б. ул., д.41, к.4","ЗАО","Фили-Давыдково","ГУП г. Москвы ДЕЗ района Фили-Давыдково",7731026159,"Филевская Б. ул., д.41, к.4","5.24.2","12",8.8309999999999995,"по данным в составе и состоянии общего имущества МКД мусоропроводов \"0\", ствол мусоропровода \"0\"",null,null,null,"2015-04-15"]
["-","ЗАО","Фили-Давыдково","ГУП г. Москвы ДЕЗ района Фили-Давыдково",7731026159,"-","1.23.1","365",60.862000000000002,"по данным в составе и состоянии общего имущества МКД мусоропроводов \"0\", ствол мусоропровода \"0\"",null,null,null,"2015-04-15"]
[{"$f":"+F59","v":"Первомайская ул., д.17"},"ВАО","Измайлово","АО «РЭУ  №24 района Измайлово»",7719572031,"Первомайская ул., д.17","7.2","12",7.2,"по данным, размещенным в составе и состоянии общего имущества МКД система дымоудаления отсутствует ",null,null,null,"2015-04-27"]
["Прядильная 1-я ул., д.8","ВАО","Измайлово","АО «РЭУ  №24 района Измайлово»",7719572031,"Прядильная 1-я ул., д.8","7.2","12",7.2,"по данным, размещенным в составе и состоянии общего имущества МКД система дымоудаления отсутствует ",null,null,null,"2015-04-27"]
["Прядильная 3-я ул., д.18А","ВАО","Измайлово","АО «РЭУ  №24 района Измайлово»",7719572031,"Прядильная 3-я ул., д.18А","7.2","12",7.2,"по данным, размещенным в составе и состоянии общего имущества МКД система дымоудаления отсутствует ",null,null,null,"2015-04-27"]
["Прядильная 3-я ул., д.17","ВАО","Измайлово","АО «РЭУ  №24 района Измайлово»",7719572031,"Прядильная 3-я ул., д.17","7.2","12",7.2,"по данным, размещенным в составе и состоянии общего имущества МКД система дымоудаления отсутствует ",null,null,null,"2015-04-27"]
["Первомайская ул., д.5","ВАО","Измайлово","АО «РЭУ  №24 района Измайлово»",7719572031,"Первомайская ул., д.5","7.2","12",7.2,"по данным, размещенным в составе и состоянии общего имущества МКД система дымоудаления отсутствует ",null,null,null,"2015-04-27"]
["Первомайская ул., д.19","ВАО","Измайлово","АО «РЭУ  №24 района Измайлово»",7719572031,"Первомайская ул., д.19","7.2","12",7.2,"по данным, размещенным в составе и состоянии общего имущества МКД система дымоудаления отсутствует ",null,null,null,"2015-04-27"]
["Измайловская пл., д.9, к.1","ВАО","Измайлово","АО «РЭУ  №24 района Измайлово»",7719572031,"Измайловская пл., д.9, к.1","7.2","12",7.2,"по данным, размещенным в составе и состоянии общего имущества МКД система дымоудаления отсутствует ",null,null,null,"2015-04-27"]
["Федеративный просп., д.8, к.2","ВАО","Перово","ГУП г. Москвы ДЕЗ района «Перово»",7720082835,"Федеративный просп., д.8, к.2","7.2","12",58.189,"по данным в составе и состоянии общего имущества МКД систем дымоудаления \"0\"",null,null,null,"2015-04-27"]
["Плющева ул., д.10, к.1","ВАО","Перово","ГУП г. Москвы ДЕЗ района «Перово»",7720082835,"Плющева ул., д.10, к.1","7.2","12",58.189,"по данным в составе и состоянии общего имущества МКД систем дымоудаления \"0\"",null,null,null,"2015-04-27"]
["Плющева ул., д.12, к.1","ВАО","Перово","ГУП г. Москвы ДЕЗ района «Перово»",7720082835,"Плющева ул., д.12, к.1","7.2","12",58.189,"по данным в составе и состоянии общего имущества МКД систем дымоудаления \"0\"",null,null,null,"2015-04-27"]
["Федеративный просп., д.7, к.1","ВАО","Перово","ГУП г. Москвы ДЕЗ района «Перово»",7720082835,"Федеративный просп., д.7, к.1","7.2","12",58.189,"по данным в составе и состоянии общего имущества МКД систем дымоудаления \"0\"",null,null,null,"2015-04-27"]
["Федеративный просп., д.7, к.3","ВАО","Перово","ГУП г. Москвы ДЕЗ района «Перово»",7720082835,"Федеративный просп., д.7, к.3","7.2","12",58.189,"по данным в составе и состоянии общего имущества МКД систем дымоудаления \"0\"",null,null,null,"2015-04-27"]
["Федеративный просп., д.7, к.4","ВАО","Перово","ГУП г. Москвы ДЕЗ района «Перово»",7720082835,"Федеративный просп., д.7, к.4","7.2","12",58.189,"по данным в составе и состоянии общего имущества МКД систем дымоудаления \"0\"",null,null,null,"2015-04-27"]
["Федеративный просп., д.7, к.2","ВАО","Перово","ГУП г. Москвы ДЕЗ района «Перово»",7720082835,"Федеративный просп., д.7, к.2","7.2","12",58.189,"по данным в составе и состоянии общего имущества МКД систем дымоудаления \"0\"",null,null,null,"2015-04-27"]
["Федеративный просп., д.6, к.3","ВАО","Перово","ГУП г. Москвы ДЕЗ района «Перово»",7720082835,"Федеративный просп., д.6, к.3","7.2","12",58.189,"по данным в составе и состоянии общего имущества МКД систем дымоудаления \"0\"",null,null,null,"2015-04-27"]
["Федеративный просп., д.9, к.1","ВАО","Перово","ГУП г. Москвы ДЕЗ района «Перово»",7720082835,"Федеративный просп., д.9, к.1","7.2","12",58.189,"по данным в составе и состоянии общего имущества МКД систем дымоудаления \"0\"",null,null,null,"2015-04-27"]
["Федеративный просп., д.6, к.2","ВАО","Перово","ГУП г. Москвы ДЕЗ района «Перово»",7720082835,"Федеративный просп., д.6, к.2","7.2","12",58.189,"по данным в составе и состоянии общего имущества МКД систем дымоудаления \"0\"",null,null,null,"2015-04-27"]
["Федеративный просп., д.6, к.1","ВАО","Перово","ГУП г. Москвы ДЕЗ района «Перово»",7720082835,"Федеративный просп., д.6, к.1","7.2","12",58.189,"по данным в составе и состоянии общего имущества МКД систем дымоудаления \"0\"",null,null,null,"2015-04-27"]
["Плющева ул., д.10, к.2","ВАО","Перово","ГУП г. Москвы ДЕЗ района «Перово»",7720082835,"Плющева ул., д.10, к.2","7.2","12",58.189,"по данным в составе и состоянии общего имущества МКД систем дымоудаления \"0\"",null,null,null,"2015-04-27"]

{"sheet":"Лист1","index":1,"n_rows":17,"n_cols":15,"rows_kept":17,"cut":false,"hidden":false,"merged":[[0,4,0,10]]}
[null,null,null,null,"работы"]
["Сиреневый бульв., д.4, к.3",null,null,null,"9.1","9.2","6.1","5.24.2","1.23.1","2.2.1","7.2","Наименование управляющей организации, товарищества, кооператива","количесто домов в управлении (из списка), (ед)","Округ","количесто округов в управлении (из списка), (ед)"]
["Русаковская ул., д.28",null,"Сиреневый бульв., д.4, к.3",{"$f":"COUNTIF(_xlnm.Criteria,C3)","v":1},null,null,null,null,null,null,null,{"$f":"VLOOKUP(C3,СВОД!$A$7:$O$77,4,)","v":"АО «РЭУ  №24 района Измайлово»"},{"$f":"COUNTIF($L$3:$L$17,L3)","v":1},{"$f":"VLOOKUP(C3,СВОД!$A$7:$O$77,2,)","v":"ВАО"},{"$f":"COUNTIFS($L$3:$L$17,$L$3,N3:N17,N3)","v":1}]
["Вешняковская ул., д.14, к.2",null,"Вешняковская ул., д.12, к.1",{"$f":"COUNTIF(_xlnm.Criteria,C4)","v":0},null,null,null,null,null,null,null,{"$f":"VLOOKUP(C4,СВОД!$A$7:$O$77,4,)","v":{"$error":"#N/A"}},1,{"$f":"VLOOKUP(C4,СВОД!$A$7:$O$77,2,)","v":{"$error":"#N/A"}}]
["Наличная ул., д.5",null,"Федеративный просп., д.7, к.1",{"$f":"COUNTIF(_xlnm.Criteria,C5)","v":0},null,null,null,null,null,null,null,{"$f":"VLOOKUP(C5,СВОД!$A$7:$O$77,4,)","v":"ГУП г. Москвы ДЕЗ района «Перово»"},12,{"$f":"VLOOKUP(C5,СВОД!$A$7:$O$77,2,)","v":"ВАО"}]
["-",null,"Федеративный просп., д.7, к.3",0,null,null,null,null,null,null,null,{"$f":"VLOOKUP(C6,СВОД!$A$7:$O$77,4,)","v":"ГУП г. Москвы ДЕЗ района «Перово»"},12,{"$f":"VLOOKUP(C6,СВОД!$A$7:$O$77,2,)","v":"ВАО"}]
["Лефортовский Вал ул., д.9, к.1",null,"Федеративный просп., д.7, к.4",0,null,null,null,null,null,null,null,{"$f":"VLOOKUP(C7,СВОД!$A$7:$O$77,4,)","v":"ГУП г. Москвы ДЕЗ района «Перово»"},12,{"$f":"VLOOKUP(C7,СВОД!$A$7:$O$77,2,)","v":"ВАО"}]
["-",null,"Федеративный просп., д.7, к.2",0,null,null,null,null,null,null,null,{"$f":"VLOOKUP(C8,СВОД!$A$7:$O$77,4,)","v":"ГУП г. Москвы ДЕЗ района «Перово»"},12,{"$f":"VLOOKUP(C8,СВОД!$A$7:$O$77,2,)","v":"ВАО"}]
["Солдатская ул., д.3",null,"Федеративный просп., д.6, к.3",0,null,null,null,null,null,null,null,{"$f":"VLOOKUP(C9,СВОД!$A$7:$O$77,4,)","v":"ГУП г. Москвы ДЕЗ района «Перово»"},12,{"$f":"VLOOKUP(C9,СВОД!$A$7:$O$77,2,)","v":"ВАО"}]
["-",null,"Федеративный просп., д.5, к.1",0,null,null,null,null,null,null,null,{"$f":"VLOOKUP(C10,СВОД!$A$7:$O$77,4,)","v":"ГУП г. Москвы ДЕЗ района «Перово»"},12,{"$f":"VLOOKUP(C10,СВОД!$A$7:$O$77,2,)","v":"ВАО"}]
["Солдатский пер., д.8",null,"Федеративный просп., д.9, к.1",0,null,null,null,null,null,null,null,{"$f":"VLOOKUP(C11,СВОД!$A$7:$O$77,4,)","v":"ГУП г. Москвы ДЕЗ района «Перово»"},12,{"$f":"VLOOKUP(C11,СВОД!$A$7:$O$77,2,)","v":"ВАО"}]
["-",null,"Федеративный просп., д.10, к.2",0,null,null,null,null,null,null,null,{"$f":"VLOOKUP(C12,СВОД!$A$7:$O$77,4,)","v":"ГУП г. Москвы ДЕЗ района «Перово»"},12,{"$f":"VLOOKUP(C12,СВОД!$A$7:$O$77,2,)","v":"ВАО"}]
["Лефортовский Вал ул., д.11, к.2",null,"Федеративный просп., д.6, к.2",0,null,null,null,null,null,null,null,{"$f":"VLOOKUP(C13,СВОД!$A$7:$O$77,4,)","v":"ГУП г. Москвы ДЕЗ района «Перово»"},12,{"$f":"VLOOKUP(C13,СВОД!$A$7:$O$77,2,)","v":"ВАО"}]
["-",null,"Федеративный просп., д.6, к.1",0,null,null,null,null,null,null,null,{"$f":"VLOOKUP(C14,СВОД!$A$7:$O$77,4,)","v":"ГУП г. Москвы ДЕЗ района «Перово»"},12,{"$f":"VLOOKUP(C14,СВОД!$A$7:$O$77,2,)","v":"ВАО"}]
["Черемушкинская Б. ул., д.2, к.3",null,"Аносова ул., д.7",0,null,null,null,null,null,null,null,{"$f":"VLOOKUP(C15,СВОД!$A$7:$O$77,4,)","v":"ГУП г. Москвы ДЕЗ района «Перово»"},12,{"$f":"VLOOKUP(C15,СВОД!$A$7:$O$77,2,)","v":"ВАО"}]
["Измайловская пл., д.6",null,"Плющева ул., д.10, к.2",0,null,null,null,null,null,null,null,{"$f":"VLOOKUP(C16,СВОД!$A$7:$O$77,4,)","v":"ГУП г. Москвы ДЕЗ района «Перово»"},12,{"$f":"VLOOKUP(C16,СВОД!$A$7:$O$77,2,)","v":"ВАО"}]
["Парковая 7-я ул., д.6, к.3",null,"Кутузовский просп., д.82",0,null,null,null,null,null,null,null,{"$f":"VLOOKUP(C17,СВОД!$A$7:$O$77,4,)","v":"ГУП г. Москвы ДЕЗ района Фили-Давыдково"},1,{"$f":"VLOOKUP(C17,СВОД!$A$7:$O$77,2,)","v":"ЗАО"}]